fUSD/lending_fUSD_20250911
["ID","MTS","AMOUNT","RATE_DAILY","PERIOD"]
[384915458,1757626286155,-400.0,0.00027671,7]
[384915459,1757626286164,-530.66,0.00027671,7]
[384915460,1757626286174,-925.9,0.00027671,7]
[384915461,1757626286184,-400.0,0.00027671,7]
[384915462,1757626286193,-400.0,0.00027671,7]
[384915463,1757626286203,-495.84,0.00027671,7]
[384915464,1757626286212,-400.0,0.00027671,7]
[384915465,1757626286222,-400.0,0.00027671,7]
[384915466,1757626286231,-400.0,0.00027671,7]
[384915467,1757626286240,-461.07,0.00027671,7]
[384915468,1757626286250,-400.0,0.00027671,7]
[384915469,1757626286259,-400.0,0.00027671,7]
[384915470,1757626286269,-285.922685,0.00027671,7]
[384915471,1757626286278,-400.0,0.00027671,7]
[384915472,1757626286288,-400.0,0.00027671,7]
[384915473,1757626286298,-285.922685,0.00027671,7]
[384915474,1757626286307,-285.922685,0.00027671,7]
[384915475,1757626286317,-400.0,0.00027671,7]
[384915476,1757626286326,-400.0,0.00027671,7]
[384915477,1757626286336,-285.922687,0.00027671,7]
[384915478,1757626286345,-400.0,0.00027671,7]
[384915479,1757626286355,-266.45274834,0.00027671,7]
[384915480,1757626286364,-400.0,0.00027671,7]
[384915481,1757626286373,-151.0,0.00027671,7]
[384915482,1757626286383,-499.08,0.00027671,7]
[384915483,1757626286392,-400.0,0.00027671,7]
[384915484,1757626286402,-400.0,0.00027671,7]
[384915485,1757626286411,-400.0,0.00027671,7]
[384915486,1757626286421,-473.59,0.00027671,7]
[384915487,1757626286430,-170.044537,0.00027671,7]
[384915488,1757626286440,-170.044537,0.00027671,7]
[384915489,1757626286449,-282.27712872,0.00027671,7]
[384915490,1757626286459,-400.0,0.00027671,7]
[384915491,1757626286468,-533.31,0.00027671,7]
[384915492,1757626286477,-673.8,0.00027671,7]
[384915493,1757626286486,-170.044537,0.00027671,7]
[384915494,1757626286496,-548.17,0.00027671,7]
[384915495,1757626286505,-867.32,0.00027671,7]
[384915496,1757626286514,-400.0,0.00027671,7]
[384915497,1757626286524,-170.044533,0.00027671,7]
[384915498,1757626286533,-716.58,0.00027671,7]
[384915499,1757626286543,-400.0,0.00027671,7]
[384915500,1757626286552,-400.0,0.00027671,7]
[384915501,1757626286561,-400.0,0.00027671,7]
[384915502,1757626286571,-209.416581,0.00027671,7]
[384915503,1757626286580,-400.0,0.00027671,7]
[384915504,1757626286590,-1702.68,0.00027671,7]
[384915505,1757626286599,-680.3,0.00027671,7]
[384915506,1757626286608,-209.416581,0.00027671,7]
[384915507,1757626286618,-714.36,0.00027671,7]
[384915508,1757626286627,-400.0,0.00027671,7]
[384915509,1757626286636,-209.416581,0.00027671,7]
[384915510,1757626286646,-400.0,0.00027671,7]
[384915511,1757626286655,-209.416584,0.00027671,7]
[384915512,1757626286664,-1610.6,0.00027671,7]
[384915513,1757626286674,-400.0,0.00027671,7]
[384915514,1757626286683,-605.89,0.00027671,7]
[384915515,1757626286692,-400.0,0.00027671,7]
[384915516,1757626286701,-400.0,0.00027671,7]
[384915517,1757626286711,-400.0,0.00027671,7]
[384915518,1757626286720,-820.69,0.00027671,7]
[384915519,1757626286729,-919.41,0.00027671,7]
[384915520,1757626286738,-400.0,0.00027671,7]
[384915521,1757626286748,-400.0,0.00027671,7]
[384915522,1757626286757,-645.47,0.00027671,7]
[384915523,1757626286766,-400.0,0.00027671,7]
[384915524,1757626286776,-1650.2,0.00027671,7]
[384915525,1757626286785,-662.76,0.00027671,7]
[384915526,1757626286794,-400.0,0.00027671,7]
[384915527,1757626286804,-400.0,0.00027671,7]
[384915528,1757626286813,-400.0,0.00027671,7]
[384915529,1757626286822,-400.0,0.00027671,7]
[384915530,1757626286831,-400.0,0.00027671,7]
[384915531,1757626286841,-400.0,0.00027671,7]
[384915532,1757626286851,-400.0,0.00027671,7]
[384915533,1757626286861,-755.29,0.00027671,7]
[384915534,1757626286871,-440.66291128,0.00027671,7]
[384915535,1757626286880,-400.0,0.00027671,7]
[384915536,1757626286889,-400.0,0.00027671,7]
[384915537,1757626286899,-400.0,0.00027671,7]
[384915538,1757626286908,-400.0,0.00027671,7]
[384915539,1757626286918,-400.0,0.00027671,7]
[384915540,1757626286928,-400.0,0.00027671,7]
[384915541,1757626286937,-400.0,0.00027671,7]
[384915542,1757626286946,-400.0,0.00027671,7]
[384915543,1757626286955,-400.0,0.00027671,7]
[384915544,1757626286965,-400.0,0.00027671,7]
[384915545,1757626286974,-400.0,0.00027671,7]
[384915546,1757626286983,-658.3,0.00027671,7]
[384915547,1757626286993,-464.61,0.00027671,7]
[384915548,1757626287003,-707.91,0.00027671,7]
[384915549,1757626287012,-1622.49,0.00027671,7]
[384915550,1757626287021,-913.6,0.00027671,7]
[384915551,1757626287031,-400.0,0.00027671,7]
[384915552,1757626287404,-400.0,0.00027671,7]
[384915553,1757626287437,-400.0,0.00027671,7]
[384915554,1757626287447,-1438.48,0.00027671,7]
[384915555,1757626287456,-400.0,0.00027671,7]
[384915556,1757626287466,-789.9,0.00027671,7]
[384915557,1757626287475,-448.46,0.00027671,7]
[384915558,1757626287485,-400.0,0.00027671,7]
[384915559,1757626287495,-400.0,0.00027671,7]
[384915560,1757626287504,-433.7,0.00027671,7]
[384915561,1757626287514,-668.76,0.00027671,7]
[384915562,1757626287523,-245.01239636,0.00027671,7]
[384915563,1757626287533,-400.0,0.00027671,7]
[384915564,1757626287543,-400.0,0.00027671,7]
[384915565,1757626287553,-1422.82,0.00027671,7]
[384915566,1757626287562,-400.0,0.00027671,7]
[384915567,1757626287572,-400.0,0.00027671,7]
[384915568,1757626287582,-746.76,0.00027671,7]
[384915569,1757626287591,-400.0,0.00027671,7]
[384915570,1757626287601,-701.31,0.00027671,7]
[384915571,1757626287610,-963.86,0.00027671,7]
[384915572,1757626287619,-400.0,0.00027671,7]
[384915573,1757626287628,-1022.76,0.00027671,7]
[384915574,1757626287638,-605.48,0.00027671,7]
[384915575,1757626287647,-400.0,0.00027671,7]
[384915576,1757626287656,-400.0,0.00027671,7]
[384915577,1757626287666,-400.0,0.00027671,7]
[384915578,1757626287675,-400.0,0.00027671,7]
[384915579,1757626287684,-400.0,0.00027671,7]
[384915580,1757626287694,-420.66786236,0.00027671,7]
[384915581,1757626287703,-400.0,0.00027671,7]
[384915582,1757626287712,-400.0,0.00027671,7]
[384915583,1757626287722,-400.0,0.00027671,7]
[384915584,1757626287731,-1487.79,0.00027671,7]
[384915585,1757626287740,-2001.0,0.00027671,7]
[384915586,1757626287750,-400.0,0.00027671,7]
[384915587,1757626287759,-452.16,0.00027671,7]
[384915588,1757626287769,-400.0,0.00027671,7]
[384915589,1757626287779,-658.34,0.00027671,7]
[384915590,1757626287788,-400.0,0.00027671,7]
[384915591,1757626287798,-750.8,0.00027671,7]
[384915592,1757626287807,-516.69,0.00027671,7]
[384915593,1757626287817,-400.0,0.00027671,7]
[384915594,1757626287827,-400.0,0.00027671,7]
[384915595,1757626287836,-400.0,0.00027671,7]
[384915596,1757626287851,-400.0,0.00027671,7]
[384915597,1757626287861,-911.52,0.00027671,7]
[384915598,1757626287871,-400.0,0.00027671,7]
[384915599,1757626287882,-400.0,0.00027671,7]
[384915600,1757626287893,-400.0,0.00027671,7]
[384915601,1757626287903,-400.0,0.00027671,7]
[384915602,1757626287912,-400.0,0.00027671,7]
[384915603,1757626287923,-1269.91,0.00027671,7]
[384915604,1757626287932,-978.0,0.00027671,7]
[384915605,1757626287942,-478.97,0.00027671,7]
[384915606,1757626287951,-400.0,0.00027671,7]
[384915607,1757626287960,-400.0,0.00027671,7]
[384915608,1757626287971,-633.26,0.00027671,7]
[384915609,1757626287980,-400.0,0.00027671,7]
[384915610,1757626287989,-668.08,0.00027671,7]
[384915611,1757626287999,-400.0,0.00027671,7]
[384915612,1757626288008,-400.0,0.00027671,7]
[384915613,1757626288018,-400.0,0.00027671,7]
[384915614,1757626288027,-400.0,0.00027671,7]
[384915615,1757626288036,-400.0,0.00027671,7]
[384915616,1757626288046,-400.0,0.00027671,7]
[384915617,1757626288055,-400.0,0.00027671,7]
[384915618,1757626288064,-400.0,0.00027671,7]
[384915619,1757626288074,-400.0,0.00027671,7]
[384915620,1757626288083,-400.0,0.00027671,7]
[384915621,1757626288093,-400.0,0.00027671,7]
[384915622,1757626288103,-400.0,0.00027671,7]
[384915623,1757626288112,-400.0,0.00027671,7]
[384915624,1757626288121,-400.0,0.00027671,7]
[384915625,1757626288131,-400.0,0.00027671,7]
[384915626,1757626288140,-400.0,0.00027671,7]
[384915627,1757626288149,-400.0,0.00027671,7]
[384915628,1757626288158,-400.0,0.00027671,7]
[384915629,1757626288168,-1189.42,0.00027671,7]
[384915630,1757626288177,-1229.3,0.00027671,7]
[384915631,1757626288186,-400.0,0.00027671,7]
[384915632,1757626288196,-400.0,0.00027671,7]
[384915633,1757626288205,-400.0,0.00027671,7]
[384915634,1757626288215,-400.0,0.00027671,7]
[384915635,1757626288224,-400.0,0.00027671,7]
[384915636,1757626288234,-400.0,0.00027671,7]
[384915637,1757626288243,-783.43,0.00027671,7]
[384915638,1757626288253,-1405.93,0.00027671,7]
[384915639,1757626288263,-400.0,0.00027671,7]
[384915640,1757626288272,-400.0,0.00027671,7]
[384915641,1757626288281,-400.0,0.00027671,7]
[384915642,1757626288291,-400.0,0.00027671,7]
[384915643,1757626288300,-400.0,0.00027671,7]
[384915644,1757626288310,-617.76,0.00027671,7]
[384915645,1757626288319,-400.0,0.00027671,7]
[384915646,1757626288329,-400.0,0.00027671,7]
[384915647,1757626288338,-400.0,0.00027671,7]
[384915648,1757626288347,-400.0,0.00027671,7]
[384915649,1757626288356,-500.33,0.00027671,7]
[384915650,1757626288366,-1509.07,0.00027671,7]
[384915651,1757626288376,-665.59,0.00027671,7]
[384915652,1757626288386,-400.0,0.00027671,7]
[384915653,1757626288395,-400.0,0.00027671,7]
[384915654,1757626288404,-2223.5,0.00027671,7]
[384915655,1757626288414,-400.0,0.00027671,7]
[384915656,1757626288426,-400.0,0.00027671,7]
[384915657,1757626288437,-400.0,0.00027671,7]
[384915658,1757626288446,-400.0,0.00027671,7]
[384915659,1757626288457,-706.92,0.00027671,7]
[384915660,1757626288467,-400.0,0.00027671,7]
[384915661,1757626288477,-687.06,0.00027671,7]
[384915662,1757626288486,-400.0,0.00027671,7]
[384915663,1757626288496,-675.58,0.00027671,7]
[384915664,1757626288505,-400.0,0.00027671,7]
[384915665,1757626288514,-424.83127354,0.00027671,7]
[384915666,1757626288523,-414.28,0.00027671,7]
[384915667,1757626288533,-400.0,0.00027671,7]
[384915668,1757626288542,-400.0,0.00027671,7]
[384915669,1757626288552,-604.99,0.00027671,7]
[384915670,1757626288561,-1568.03,0.00027671,7]
[384915671,1757626288571,-400.0,0.00027671,7]
[384915672,1757626288581,-1080.98,0.00027671,7]
[384915673,1757626288590,-406.97,0.00027671,7]
[384915674,1757626288599,-639.19,0.00027671,7]
[384915675,1757626288608,-400.0,0.00027671,7]
[384915676,1757626288617,-400.0,0.00027671,7]
[384915677,1757626288627,-658.25,0.00027671,7]
[384915678,1757626288636,-400.0,0.00027671,7]
[384915679,1757626288646,-400.0,0.00027671,7]
[384915680,1757626288656,-400.0,0.00027671,7]
[384915681,1757626288665,-400.0,0.00027671,7]
[384915682,1757626288675,-400.0,0.00027671,7]
[384915683,1757626288684,-2026.42,0.00027671,7]
[384915684,1757626288693,-1185.68,0.00027671,7]
[384915685,1757626288703,-451.19,0.00027671,7]
[384915686,1757626288712,-486.78,0.00027671,7]
[384915687,1757626288721,-1462.01,0.00027671,7]
[384915688,1757626288731,-400.0,0.00027671,7]
[384915689,1757626288740,-959.5,0.00027671,7]
[384915690,1757626288749,-1384.03,0.00027671,7]
[384915691,1757626288759,-401.24,0.00027671,7]
[384915692,1757626288768,-400.0,0.00027671,7]
[384915693,1757626288777,-729.54,0.00027671,7]
[384915694,1757626288787,-400.0,0.00027671,7]
[384915695,1757626288796,-400.0,0.00027671,7]
[384915696,1757626288805,-400.0,0.00027671,7]
[384915697,1757626288815,-1015.96,0.00027671,7]
[384915698,1757626288827,-400.0,0.00027671,7]
[384915699,1757626288844,-543.92197175,0.00027671,7]
[384915700,1757626288861,-993.35,0.00027671,7]
[384915701,1757626288871,-400.0,0.00027671,7]
[384915702,1757626288881,-534.87,0.00027671,7]
[384915703,1757626288890,-400.0,0.00027671,7]
[384915704,1757626288899,-400.0,0.00027671,7]
[384915705,1757626288908,-400.0,0.00027671,7]
[384915706,1757626288918,-400.0,0.00027671,7]
[384915707,1757626288927,-421.78,0.00027671,7]
[384915708,1757626288936,-508.7,0.00027671,7]
[384915709,1757626288945,-581.1,0.00027671,7]
[384915710,1757626288955,-611.92,0.00027671,7]
[384915711,1757626288964,-400.0,0.00027671,7]
[384915712,1757626288974,-857.21,0.00027671,7]
[384915713,1757626288984,-400.0,0.00027671,7]
[384915714,1757626289000,-1875.33,0.00027671,7]
[384915715,1757626289011,-400.0,0.00027671,7]
[384915716,1757626289022,-400.0,0.00027671,7]
[384915717,1757626289032,-400.0,0.00027671,7]
[384915718,1757626289044,-400.0,0.00027671,7]
[384915719,1757626289055,-1082.74,0.00027671,7]
[384915720,1757626289066,-400.0,0.00027671,7]
[384915721,1757626289076,-400.0,0.00027671,7]
[384915722,1757626289088,-1458.01,0.00027671,7]
[384915723,1757626289098,-2074.81,0.00027671,7]
[384915724,1757626289109,-400.0,0.00027671,7]
[384915725,1757626289118,-400.0,0.00027671,7]
[384915726,1757626289130,-400.0,0.00027671,7]
[384915727,1757626289139,-464.85,0.00027671,7]
[384915728,1757626289150,-400.0,0.00027671,7]
[384915729,1757626289161,-400.0,0.00027671,7]
[384915730,1757626289171,-400.0,0.00027671,7]
[384915731,1757626289181,-2017.07,0.00027671,7]
[384915732,1757626289190,-1542.59,0.00027671,7]
[384915733,1757626289200,-1069.55,0.00027671,7]
[384915734,1757626289211,-400.0,0.00027671,7]
[384915735,1757626289221,-400.0,0.00027671,7]
[384915736,1757626289231,-400.0,0.00027671,7]
[384915737,1757626289240,-675.22,0.00027671,7]
[384915738,1757626289249,-400.0,0.00027671,7]
[384915739,1757626289260,-400.0,0.00027671,7]
[384915740,1757626289270,-400.0,0.00027671,7]
[384915741,1757626289280,-400.0,0.00027671,7]
[384915742,1757626289289,-651.85,0.00027671,7]
[384915743,1757626289299,-400.0,0.00027671,7]
[384915744,1757626289309,-400.0,0.00027671,7]
[384915745,1757626289320,-842.56,0.00027671,7]
[384915746,1757626289330,-400.0,0.00027671,7]
[384915747,1757626289339,-992.87,0.00027671,7]
[384915748,1757626289348,-400.0,0.00027671,7]
[384915749,1757626289358,-1540.56,0.00027671,7]
[384915750,1757626289367,-400.0,0.00027671,7]
[384915751,1757626289376,-400.0,0.00027671,7]
[384915752,1757626289386,-631.63,0.00027671,7]
[384915753,1757626289395,-400.0,0.00027671,7]
[384915754,1757626289404,-653.96,0.00027671,7]
[384915755,1757626289413,-400.0,0.00027671,7]
[384915756,1757626289422,-400.0,0.00027671,7]
[384915757,1757626289431,-2317.74,0.00027671,7]
[384915758,1757626289440,-400.0,0.00027671,7]
[384915759,1757626289450,-416.44,0.00027671,7]
[384915760,1757626289459,-400.0,0.00027671,7]
[384915761,1757626289469,-400.0,0.00027671,7]
[384915762,1757626289480,-1093.62,0.00027671,7]
[384915763,1757626289490,-1372.67,0.00027671,7]
[384915764,1757626289500,-1809.95,0.00027671,7]
[384915765,1757626289509,-496.7,0.00027671,7]
[384915766,1757626289519,-302.38,0.00027671,7]
[384915767,1757626289528,-400.0,0.00027671,7]
[384915768,1757626289539,-1680.38,0.00027671,7]
[384915769,1757626289549,-1426.34,0.00027671,7]
[384915770,1757626289559,-1418.49,0.00027671,7]
[384915771,1757626289570,-590.87,0.00027671,7]
[384915772,1757626289580,-400.0,0.00027671,7]
[384915773,1757626289590,-2920.79,0.00027671,7]
[384915774,1757626289599,-400.0,0.00027671,7]
[384915775,1757626289609,-1466.44,0.00027671,7]
[384915776,1757626289618,-400.0,0.00027671,7]
[384915777,1757626289628,-2725.58,0.00027671,7]
[384915778,1757626289638,-2379.51,0.00027671,7]
[384915779,1757626289647,-1764.81,0.00027671,7]
[384915780,1757626289656,-400.0,0.00027671,7]
[384915781,1757626289665,-1011.29,0.00027671,7]
[384915782,1757626289675,-730.05,0.00027671,7]
[384915783,1757626289684,-400.0,0.00027671,7]
[384915784,1757626289694,-400.0,0.00027671,7]
[384915785,1757626289703,-2269.22,0.00027671,7]
[384915786,1757626289712,-400.0,0.00027671,7]
[384915787,1757626289722,-1605.2,0.00027671,7]
[384915788,1757626289732,-400.0,0.00027671,7]
[384915789,1757626289744,-400.0,0.00027671,7]
[384915790,1757626289754,-400.0,0.00027671,7]
[384915791,1757626289763,-1126.01,0.00027671,7]
[384915792,1757626289773,-400.0,0.00027671,7]
[384915793,1757626289782,-400.0,0.00027671,7]
[384915794,1757626289792,-507.76181427,0.00027671,7]
[384915795,1757626289900,-400.0,0.00027671,7]
[384915796,1757626289911,-699.34,0.00027671,7]
[384915797,1757626289921,-400.0,0.00027671,7]
[384915798,1757626289931,-277.97549125,0.00027671,7]
[384915799,1757626289940,-1856.89,0.00027671,7]
[384915800,1757626289950,-1000.0,0.00027671,7]
[384915801,1757626289959,-359.33122292,0.00027671,7]
[384915802,1757626289968,-2839.69,0.00027671,7]
[384915803,1757626289978,-826.61,0.00027671,7]
[384915804,1757626289987,-400.0,0.00027671,7]
[384915805,1757626289995,-400.0,0.00027671,7]
[384915806,1757626290005,-400.0,0.00027671,7]
[384915807,1757626290014,-400.0,0.00027671,7]
[384915808,1757626290024,-400.0,0.00027671,7]
[384915809,1757626290033,-1698.14,0.00027671,7]
[384915810,1757626290043,-789.85,0.00027671,7]
[384915811,1757626290052,-843.58,0.00027671,7]
[384915812,1757626290061,-1845.83,0.00027671,7]
[384915813,1757626290070,-400.0,0.00027671,7]
[384915814,1757626290080,-400.0,0.00027671,7]
[384915815,1757626290089,-1209.91,0.00027671,7]
[384915816,1757626290098,-400.0,0.00027671,7]
[384915817,1757626290107,-400.0,0.00027671,7]
[384915818,1757626290116,-605.54,0.00027671,7]
[384915819,1757626290126,-2743.81,0.00027671,7]
[384915820,1757626290135,-539.27,0.00027671,7]
[384915821,1757626290144,-500.0,0.00027671,2]
[384915822,1757626290153,-400.0,0.00027671,7]
[384915823,1757626290162,-400.0,0.00027671,7]
[384915824,1757626290171,-2769.64,0.00027671,7]
[384915825,1757626290180,-824.88,0.00027671,7]
[384915826,1757626290189,-1475.87,0.00027671,7]
[384915827,1757626290198,-712.52,0.00027671,7]
[384915828,1757626290207,-474.11717961,0.00027671,7]
[384915829,1757626290216,-929.14,0.00027671,7]
[384915830,1757626290226,-400.0,0.00027671,7]
[384915831,1757626290235,-400.8329432,0.00027671,7]
[384915832,1757626290244,-1829.86,0.00027671,7]
[384915833,1757626290254,-400.0,0.00027671,7]
[384915834,1757626290263,-709.49,0.00027671,7]
[384915835,1757626290272,-1176.43,0.00027671,7]
[384915836,1757626290281,-816.48,0.00027671,7]
[384915837,1757626290290,-400.0,0.00027671,7]
[384915838,1757626290299,-400.0,0.00027671,7]
[384915839,1757626290308,-400.0,0.00027671,7]
[384915840,1757626290318,-2233.98,0.00027671,7]
[384915841,1757626290327,-400.0,0.00027671,7]
[384915842,1757626290336,-400.0,0.00027671,7]
[384915843,1757626290345,-602.83,0.00027671,7]
[384915844,1757626290354,-537.09,0.00027671,7]
[384915845,1757626290363,-400.0,0.00027671,7]
[384915846,1757626290372,-400.0,0.00027671,7]
[384915847,1757626290381,-400.0,0.00027671,7]
[384915848,1757626290390,-532.63,0.00027671,7]
[384915849,1757626290399,-1079.9,0.00027671,7]
[384915850,1757626290408,-400.0,0.00027671,7]
[384915851,1757626290418,-400.0,0.00027671,7]
[384915852,1757626290427,-400.0,0.00027671,7]
[384915853,1757626290436,-2053.52,0.00027671,7]
[384915854,1757626290445,-400.0,0.00027671,7]
[384915855,1757626290454,-400.0,0.00027671,7]
[384915856,1757626290463,-2481.09,0.00027671,7]
[384915857,1757626290472,-548.85,0.00027671,7]
[384915858,1757626290481,-400.0,0.00027671,7]
[384915859,1757626290490,-855.04,0.00027671,7]
[384915860,1757626290499,-1954.66,0.00027671,7]
[384915861,1757626290509,-693.16,0.00027671,7]
[384915862,1757626290518,-2022.31,0.00027671,7]
[384915863,1757626290527,-486.75,0.00027671,7]
[384915864,1757626290535,-466.24,0.00027671,7]
[384915865,1757626290545,-686.51,0.00027671,7]
[384915866,1757626290554,-537.90243035,0.00027671,7]
[384915867,1757626290563,-1171.25,0.00027671,7]
[384915868,1757626290573,-611.88,0.00027671,7]
[384915869,1757626290582,-523.2107565,0.00027671,7]
[384915870,1757626290591,-447.24,0.00027671,7]
[384915871,1757626290602,-400.0,0.00027671,7]
[384915872,1757626290611,-2918.11,0.00027671,7]
[384915873,1757626290620,-2329.9,0.00027671,7]
[384915874,1757626290629,-672.6,0.00027671,7]
[384915875,1757626290638,-400.0,0.00027671,7]
[384915876,1757626290647,-1528.82,0.00027671,7]
[384915877,1757626290656,-1907.01,0.00027671,7]
[384915878,1757626290665,-481.24,0.00027671,7]
[384915879,1757626290675,-400.0,0.00027671,7]
[384915880,1757626290684,-1540.35,0.00027671,7]
[384915881,1757626290693,-400.0,0.00027671,7]
[384915882,1757626290703,-400.0,0.00027671,7]
[384915883,1757626290712,-400.0,0.00027671,7]
[384915884,1757626290722,-1296.15,0.00027671,7]
[384915885,1757626290731,-1506.37,0.00027671,7]
[384915886,1757626290740,-664.73,0.00027671,7]
[384915887,1757626290749,-400.0,0.00027671,7]
[384915888,1757626290758,-577.18,0.00027671,7]
[384915889,1757626290767,-400.0,0.00027671,7]
[384915890,1757626290776,-400.0,0.00027671,7]
[384915891,1757626290786,-400.0,0.00027671,7]
[384915892,1757626290795,-428.63,0.00027671,7]
[384915893,1757626290804,-2158.88,0.00027671,7]
[384915894,1757626290814,-461.57,0.00027671,7]
[384915895,1757626290827,-2332.29,0.00027671,7]
[384915896,1757626290836,-400.0,0.00027671,7]
[384915897,1757626290850,-1154.55,0.00027671,7]
[384915898,1757626290859,-2767.63,0.00027671,7]
[384915899,1757626290869,-400.0,0.00027671,7]
[384915900,1757626290878,-2366.16,0.00027671,7]
[384915901,1757626290888,-257.31870474,0.00027671,7]
[384915902,1757626290897,-400.0,0.00027671,7]
[384915903,1757626290907,-1818.88,0.00027671,7]
[384915904,1757626290917,-400.0,0.00027671,7]
[384915905,1757626290927,-400.0,0.00027671,7]
[384915906,1757626290936,-377.54797394,0.00027671,7]
[384915907,1757626290945,-845.87,0.00027671,7]
[384915908,1757626290955,-400.0,0.00027671,7]
[384915909,1757626290964,-580.48,0.00027671,7]
[384915910,1757626290973,-916.28,0.00027671,7]
[384915911,1757626290983,-400.0,0.00027671,7]
[384915912,1757626290992,-1864.26,0.00027671,7]
[384915913,1757626291002,-400.0,0.00027671,7]
[384915914,1757626291011,-861.27,0.00027671,7]
[384915915,1757626291020,-416.91769417,0.00027671,7]
[384915916,1757626291030,-1265.62,0.00027671,7]
[384915917,1757626291040,-1929.62,0.00027671,7]
[384915918,1757626291049,-158.57624979,0.00027671,7]
[384915919,1757626291059,-409.72222586,0.00027671,7]
[384915920,1757626291068,-400.0,0.00027671,7]
[384915921,1757626291077,-400.0,0.00027671,7]
[384915922,1757626291087,-1956.82,0.00027671,7]
[384915923,1757626291097,-400.0,0.00027671,7]
[384915924,1757626291107,-739.13,0.00027671,7]
[384915925,1757626291116,-400.0,0.00027671,7]
[384915926,1757626291124,-1584.88,0.00027671,7]
[384915927,1757626291132,-400.0,0.00027671,7]
[384915928,1757626291139,-2606.24,0.00027671,7]
[384915929,1757626291147,-400.0,0.00027671,7]
[384915930,1757626291155,-764.6,0.00027671,7]
[384915931,1757626291163,-478.74,0.00027671,7]
[384915932,1757626291172,-427.12,0.00027671,7]
[384915933,1757626291182,-400.0,0.00027671,7]
[384915934,1757626291193,-400.0,0.00027671,7]
[384915935,1757626291203,-1030.68,0.00027671,7]
[384915936,1757626291212,-400.0,0.00027671,7]
[384915937,1757626291221,-1675.53,0.00027671,7]
[384915938,1757626291231,-2732.59,0.00027671,7]
[384915939,1757626291240,-1823.27,0.00027671,7]
[384915940,1757626291249,-400.0,0.00027671,7]
[384915941,1757626291258,-2066.17,0.00027671,7]
[384915942,1757626291267,-400.0,0.00027671,7]
[384915943,1757626291277,-400.0,0.00027671,7]
[384915944,1757626291286,-959.3,0.00027671,7]
[384915945,1757626291295,-400.0,0.00027671,7]
[384915946,1757626291305,-799.0,0.00027671,7]
[384915947,1757626291315,-400.0,0.00027671,7]
[384915948,1757626291325,-2815.7,0.00027671,7]
[384915949,1757626291335,-400.0,0.00027671,7]
[384915950,1757626291344,-400.0,0.00027671,7]
[384915951,1757626291353,-2700.9,0.00027671,7]
[384915952,1757626291362,-1848.2,0.00027671,7]
[384915953,1757626291373,-400.0,0.00027671,7]
[384915954,1757626291382,-400.0,0.00027671,7]
[384915955,1757626291391,-400.0,0.00027671,7]
[384915956,1757626291400,-400.0,0.00027671,7]
[384915957,1757626291409,-400.0,0.00027671,7]